[Event "Fast Chess"]
[Site "ChessKid.com"]
[Date "2020.04.16"]
[Round "2"]
[White "Dai, Lana"]
[Black "Kulcsar, Lisa"]
[Result "1-0"]
[ECO "C25"]
[WhiteElo "1285"]
[BlackElo "821"]
[PlyCount "45"]
[EventDate "2020.??.??"]
[TimeControl "300"]
[WhiteClock "0:01:40"]
[BlackClock "0:03:07"]

1. e4 {[%emt 0:00:00]} e5 {[%emt 0:00:03]} 2. Nc3 {[%emt 0:00:03]} Bd6 {
[%emt 0:00:08]} 3. Nf3 {[%emt 0:00:03]} Nf6 {[%emt 0:00:06]} 4. Bc4 {[%emt 0:
00:03]} O-O {[%emt 0:00:04]} 5. d3 {[%emt 0:00:02]} Qe7 {[%emt 0:00:14]} 6. Bg5
{[%emt 0:00:08]} Re8 {[%emt 0:00:11]} 7. Nd5 {[%emt 0:00:03]} Qf8 {[%emt 0:00:
18]} 8. Bxf6 {[%emt 0:00:08]} gxf6 {[%emt 0:00:09]} 9. Nxf6+ {[%emt 0:00:10]}
Kh8 {[%emt 0:00:20]} 10. Nxe8 {[%emt 0:00:04]} Qxe8 {[%emt 0:00:02]} 11. Nh4 {
[%emt 0:00:07]} Kg7 {[%emt 0:00:09]} 12. Qg4+ {[%emt 0:00:05]} Kf6 {[%emt 0:00:
03]} 13. Qf5+ {[%emt 0:00:03]} Kg7 {[%emt 0:00:09]} 14. Qg5+ {[%emt 0:00:09]}
Kf8 {[%emt 0:00:04]} 15. Qh6+ {[%emt 0:00:06]} Ke7 {[%emt 0:00:05]} 16. Nf5+ {
[%emt 0:00:05]} Kd8 {[%emt 0:00:29]} 17. Qg5+ {[%emt 0:00:03]} Be7 {[%emt 0:00:
09]} 18. Nxe7 {[%emt 0:00:11]} Qf8 {[%emt 0:00:10]} 19. Ng6+ {[%emt 0:00:04]}
Ke8 {[%emt 0:00:15]} 20. Nxf8 {[%emt 0:00:06]} Kxf8 {[%emt 0:00:02]} 21. Qf6 {
[%emt 0:00:02]} d5 {[%emt 0:00:05]} 22. Bxd5 {[%emt 0:00:03]} Bd7 {[%emt 0:00:
05]} 23. Qxf7# {[%emt 0:00:03] TopBrownCave won by checkmate} 1-0

[Event "Fast Chess"]
[Site "ChessKid.com"]
[Date "2020.04.16"]
[Round "2"]
[White "Li, Tobias"]
[Black "Richter, Leon"]
[Result "0-1"]
[ECO "C55"]
[WhiteElo "1247"]
[BlackElo "1161"]
[PlyCount "80"]
[EventDate "2020.??.??"]
[TimeControl "300"]
[WhiteClock "0:01:03"]
[BlackClock "0:00:52"]

1. e4 {[%emt 0:00:00]} e5 {[%emt 0:00:01]} 2. Nf3 {[%emt 0:00:01]} Bd6 {
[%emt 0:00:02]} 3. Nc3 {[%emt 0:00:02]} Nf6 {[%emt 0:00:02]} 4. Bc4 {[%emt 0:
00:01]} O-O {[%emt 0:00:02]} 5. O-O {[%emt 0:00:03]} Nc6 {[%emt 0:00:01]} 6. d3
{[%emt 0:00:05]} Nd4 {[%emt 0:00:02]} 7. Nxd4 {[%emt 0:00:04]} exd4 {[%emt 0:
00:02]} 8. Nd5 {[%emt 0:00:01]} Nxd5 {[%emt 0:00:03]} 9. exd5 {[%emt 0:00:03]}
Qh4 {[%emt 0:00:06]} 10. h3 {[%emt 0:00:15]} Qf6 {[%emt 0:00:06]} 11. Qg4 {
[%emt 0:00:16]} h6 {[%emt 0:00:08]} 12. Re1 {[%emt 0:00:17]} b6 {[%emt 0:00:07]
} 13. Re4 {[%emt 0:00:10]} Bb7 {[%emt 0:00:09]} 14. Bf4 {[%emt 0:00:05]} Rae8 {
[%emt 0:00:09]} 15. Rxe8 {[%emt 0:00:06]} Rxe8 {[%emt 0:00:02]} 16. Bxd6 {
[%emt 0:00:02]} Qxd6 {[%emt 0:00:03]} 17. Qxd4 {[%emt 0:00:08]} c6 {[%emt 0:00:
14]} 18. Qg4 {[%emt 0:00:29]} cxd5 {[%emt 0:00:03]} 19. Bb3 {[%emt 0:00:03]}
Qc7 {[%emt 0:00:10]} 20. Ba4 {[%emt 0:00:05]} d4 {[%emt 0:00:45]} 21. Qxd4 {
[%emt 0:00:13]} Re5 {[%emt 0:00:13]} 22. Qxd7 {[%emt 0:00:13]} Qxd7 {[%emt 0:
00:06]} 23. Bxd7 {[%emt 0:00:02]} Rd5 {[%emt 0:00:05]} 24. Bg4 {[%emt 0:00:06]}
Re5 {[%emt 0:00:04]} 25. c4 {[%emt 0:00:33]} f5 {[%emt 0:00:03]} 26. Bf3 {
[%emt 0:00:10]} Bxf3 {[%emt 0:00:04]} 27. gxf3 {[%emt 0:00:01]} Re6 {[%emt 0:
00:12]} 28. Rd1 {[%emt 0:00:02]} Rd6 {[%emt 0:00:05]} 29. Kf1 {[%emt 0:00:01]}
Rd4 {[%emt 0:00:02]} 30. Ke2 {[%emt 0:00:01]} f4 {[%emt 0:00:06]} 31. Kf1 {
[%emt 0:00:04]} g5 {[%emt 0:00:02]} 32. Kg2 {[%emt 0:00:01]} h5 {[%emt 0:00:08]
} 33. h4 {[%emt 0:00:01]} gxh4 {[%emt 0:00:02]} 34. Kh3 {[%emt 0:00:01]} Kg7 {
[%emt 0:00:07]} 35. Kxh4 {[%emt 0:00:01]} Kg6 {[%emt 0:00:01]} 36. Rg1+ {
[%emt 0:00:05]} Kh6 {[%emt 0:00:02]} 37. Rd1 {[%emt 0:00:07]} Rd8 {[%emt 0:00:
13]} 38. d4 {[%emt 0:00:03]} Rg8 {[%emt 0:00:01]} 39. d5 {[%emt 0:00:03]} Rg2 {
[%emt 0:00:03]} 40. d6 {[%emt 0:00:04]} Rh2# {[%emt 0:00:02] ThinOpalSneeze
won by checkmate} 0-1

[Event "Fast Chess"]
[Site "ChessKid.com"]
[Date "2020.04.16"]
[Round "3"]
[White "Georgiev, Maximilian"]
[Black "Dai, Lana"]
[Result "1-0"]
[ECO "C50"]
[WhiteElo "1390"]
[BlackElo "1280"]
[PlyCount "65"]
[EventDate "2020.??.??"]
[TimeControl "300"]
[WhiteClock "0:00:01"]
[BlackClock "0:02:21"]

1. e4 {[%emt 0:00:00]} e5 {[%emt 0:00:17]} 2. Nf3 {[%emt 0:00:01]} Nc6 {
[%emt 0:00:03]} 3. Bc4 {[%emt 0:00:01]} h6 {[%emt 0:00:04]} 4. O-O {[%emt 0:00:
03]} Bc5 {[%emt 0:00:06]} 5. a3 {[%emt 0:00:05]} d6 {[%emt 0:00:05]} 6. h3 {
[%emt 0:00:02]} a6 {[%emt 0:00:05]} 7. Nc3 {[%emt 0:00:03]} Nf6 {[%emt 0:00:03]
} 8. d3 {[%emt 0:00:02]} O-O {[%emt 0:00:13]} 9. Be3 {[%emt 0:00:06]} Bxe3 {
[%emt 0:00:04]} 10. fxe3 {[%emt 0:00:01]} b5 {[%emt 0:00:13]} 11. Ba2 {[%emt 0:
00:04]} Bd7 {[%emt 0:00:30]} 12. Nd5 {[%emt 0:00:02]} Nxd5 {[%emt 0:00:06]} 13.
Bxd5 {[%emt 0:00:02]} a5 {[%emt 0:00:19]} 14. a4 {[%emt 0:00:04]} b4 {[%emt 0:
00:04]} 15. c3 {[%emt 0:00:04]} bxc3 {[%emt 0:00:03]} 16. bxc3 {[%emt 0:00:59]}
Rb8 {[%emt 0:00:25]} 17. d4 {[%emt 0:00:04]} exd4 {[%emt 0:00:05]} 18. exd4 {
[%emt 0:00:02]} Rb2 {[%emt 0:00:26]} 19. Rb1 {[%emt 0:00:03]} Rxb1 {[%emt 0:00:
01]} 20. Qxb1 {[%emt 0:00:02]} Qc8 {[%emt 0:00:14]} 21. Bxc6 {[%emt 0:00:04]}
Bxc6 {[%emt 0:00:03]} 22. d5 {[%emt 0:00:01]} Bxa4 {[%emt 0:00:06]} 23. Qa1 {
[%emt 0:00:04]} Bb5 {[%emt 0:00:11]} 24. Rb1 {[%emt 0:00:05]} Bd3 {[%emt 0:00:
10]} 25. Rc1 {[%emt 0:00:07]} Qa8 {[%emt 0:00:12]} 26. Re1 {[%emt 0:00:06]} a4
{[%emt 0:00:07]} 27. Nd4 {[%emt 0:00:04]} Qa7 {[%emt 0:00:13]} 28. Re3 {
[%emt 0:00:05]} Bb5 {[%emt 0:00:13]} 29. Kf2 {[%emt 0:00:05]} a3 {[%emt 0:00:
06]} 30. Nxb5 {[%emt 0:00:02]} Qb6 {[%emt 0:00:05]} 31. Nxa3 {[%emt 0:00:02]}
Qa5 {[%emt 0:00:05]} 32. Nc2 {[%emt 0:00:03]} Qxa1 {[%emt 0:00:02]} 33. Nxa1 {
[%emt 0:00:01] TallSnazzyBall won on time} 1-0

[Event "Fast Chess"]
[Site "ChessKid.com"]
[Date "2020.04.16"]
[Round "3"]
[White "Li, Patrick"]
[Black "Sasse, Gabriel"]
[Result "1-0"]
[ECO "C55"]
[WhiteElo "1007"]
[BlackElo "1241"]
[PlyCount "51"]
[EventDate "2020.??.??"]
[TimeControl "300"]
[WhiteClock "0:01:18"]
[BlackClock "0:02:22"]

1. e4 {[%emt 0:00:01]} e5 {[%emt 0:00:00]} 2. Nf3 {[%emt 0:00:01]} Nc6 {
[%emt 0:00:01]} 3. Nc3 {[%emt 0:00:02]} Nf6 {[%emt 0:00:01]} 4. Bc4 {[%emt 0:
00:03]} h6 {[%emt 0:00:03]} 5. O-O {[%emt 0:00:02]} Nxe4 {[%emt 0:00:04]} 6.
Nxe4 {[%emt 0:00:05]} d5 {[%emt 0:00:01]} 7. Bd3 {[%emt 0:00:02]} dxe4 {
[%emt 0:00:03]} 8. Bxe4 {[%emt 0:00:03]} Nd4 {[%emt 0:00:01]} 9. Nxd4 {[%emt 0:
00:03]} Qxd4 {[%emt 0:00:01]} 10. Bf3 {[%emt 0:00:06]} e4 {[%emt 0:00:03]} 11.
c3 {[%emt 0:00:06]} Qe5 {[%emt 0:00:02]} 12. d4 {[%emt 0:00:06]} Qd6 {[%emt 0:
00:08]} 13. Bxe4 {[%emt 0:00:08]} c5 {[%emt 0:00:11]} 14. dxc5 {[%emt 0:00:05]}
Qxc5 {[%emt 0:00:00]} 15. Be3 {[%emt 0:00:03]} Qe5 {[%emt 0:00:05]} 16. Bd4 {
[%emt 0:00:03]} Qf4 {[%emt 0:00:04]} 17. Be3 {[%emt 0:00:05]} Qc7 {[%emt 0:00:
04]} 18. Qf3 {[%emt 0:00:10]} Be7 {[%emt 0:02:24]} 19. Bf4 {[%emt 0:00:11]} Qb6
{[%emt 0:00:05]} 20. Be3 {[%emt 0:00:05]} Qxb2 {[%emt 0:00:03]} 21. Rab1 {
[%emt 0:00:03]} Qxa2 {[%emt 0:00:03]} 22. Bxb7 {[%emt 0:00:23]} Bxb7 {[%emt 0:
00:02]} 23. Qxb7 {[%emt 0:00:06]} Rd8 {[%emt 0:00:02]} 24. Qe4 {[%emt 0:00:15]}
Qa3 {[%emt 0:00:09]} 25. Rb7 {[%emt 0:00:15]} Qxc3 {[%emt 0:00:03]} 26. Qxe7# {
[%emt 0:00:06] WideClassyQuiz won by checkmate} 1-0

[Event "Fast Chess"]
[Site "ChessKid.com"]
[Date "2020.04.16"]
[Round "3"]
[White "Kulcsar, Lisa"]
[Black "Li, Tobias"]
[Result "0-1"]
[ECO "C20"]
[WhiteElo "814"]
[BlackElo "1249"]
[PlyCount "34"]
[EventDate "2020.??.??"]
[TimeControl "300"]
[WhiteClock "0:03:40"]
[BlackClock "0:02:42"]

1. e4 {[%emt 0:00:00]} e5 {[%emt 0:00:02]} 2. Qf3 {[%emt 0:00:09]} Nc6 {
[%emt 0:00:02]} 3. Bd3 {[%emt 0:00:07]} Nf6 {[%emt 0:00:02]} 4. Nh3 {[%emt 0:
00:05]} d5 {[%emt 0:00:08]} 5. O-O {[%emt 0:00:02]} dxe4 {[%emt 0:00:02]} 6.
Bxe4 {[%emt 0:00:07]} Bxh3 {[%emt 0:00:04]} 7. gxh3 {[%emt 0:00:07]} Nxe4 {
[%emt 0:00:03]} 8. Qxe4 {[%emt 0:00:04]} Qg5+ {[%emt 0:00:03]} 9. Kh1 {[%emt 0:
00:06]} O-O-O {[%emt 0:00:06]} 10. b4 {[%emt 0:00:11]} Bxb4 {[%emt 0:00:09]}
11. Bb2 {[%emt 0:00:06]} Bxd2 {[%emt 0:00:06]} 12. Nxd2 {[%emt 0:00:06]} Rxd2 {
[%emt 0:00:01]} 13. Ba3 {[%emt 0:00:16]} g6 {[%emt 0:00:11]} 14. Qd5 {[%emt 0:
00:21]} Rxd5 {[%emt 0:00:04]} 15. Rg1 {[%emt 0:00:06]} Qf4 {[%emt 0:00:11]} 16.
Bc1 {[%emt 0:00:07]} Qf3+ {[%emt 0:00:06]} 17. Rg2 {[%emt 0:00:18]} Rd1# {
[%emt 0:00:00] OnlyHungryKiwi won by checkmate} 0-1

[Event "Fast Chess"]
[Site "ChessKid.com"]
[Date "2020.04.16"]
[Round "3"]
[White "Richter, Leon"]
[Black "Fennesz, Moritz"]
[Result "1-0"]
[ECO "C20"]
[WhiteElo "1169"]
[BlackElo "934"]
[PlyCount "77"]
[EventDate "2020.??.??"]
[TimeControl "300"]
[WhiteClock "0:01:57"]
[BlackClock "0:02:43"]

1. e4 {[%emt 0:00:00]} e5 {[%emt 0:00:03]} 2. d3 {[%emt 0:00:02]} b5 {[%emt 0:
00:02]} 3. Nh3 {[%emt 0:00:06]} d6 {[%emt 0:00:05]} 4. Be2 {[%emt 0:00:01]} f6
{[%emt 0:00:04]} 5. O-O {[%emt 0:00:07]} c5 {[%emt 0:00:04]} 6. Bh5+ {[%emt 0:
00:03]} g6 {[%emt 0:00:05]} 7. Bg4 {[%emt 0:00:02]} f5 {[%emt 0:00:04]} 8. exf5
{[%emt 0:00:03]} gxf5 {[%emt 0:00:01]} 9. Bh5+ {[%emt 0:00:03]} Ke7 {[%emt 0:
00:04]} 10. Bg5+ {[%emt 0:00:05]} Kd7 {[%emt 0:00:04]} 11. Bxd8 {[%emt 0:00:02]
} Kxd8 {[%emt 0:00:06]} 12. Ng5 {[%emt 0:00:01]} Be7 {[%emt 0:00:07]} 13. Nf7+
{[%emt 0:00:03]} Ke8 {[%emt 0:00:12]} 14. Nxh8+ {[%emt 0:00:02]} Kf8 {[%emt 0:
00:06]} 15. Bf3 {[%emt 0:00:18]} Kg7 {[%emt 0:00:08]} 16. Bxa8 {[%emt 0:00:03]}
Kxh8 {[%emt 0:00:04]} 17. Nc3 {[%emt 0:00:06]} b4 {[%emt 0:00:04]} 18. Nd5 {
[%emt 0:00:03]} Be6 {[%emt 0:00:05]} 19. Qe2 {[%emt 0:00:11]} Nd7 {[%emt 0:00:
07]} 20. c4 {[%emt 0:00:08]} Ngf6 {[%emt 0:00:08]} 21. Nxf6 {[%emt 0:00:04]}
Bxf6 {[%emt 0:00:06]} 22. Qh5 {[%emt 0:00:07]} Kg8 {[%emt 0:00:06]} 23. Qe8+ {
[%emt 0:00:03]} Kg7 {[%emt 0:00:02]} 24. Qxe6 {[%emt 0:00:02]} Bd8 {[%emt 0:00:
09]} 25. Qxd7+ {[%emt 0:00:02]} Be7 {[%emt 0:00:04]} 26. Qxe7+ {[%emt 0:00:01]}
Kg6 {[%emt 0:00:04]} 27. Qxd6+ {[%emt 0:00:02]} Kg5 {[%emt 0:00:02]} 28. Qxc5 {
[%emt 0:00:03]} Kf4 {[%emt 0:00:03]} 29. Qxb4 {[%emt 0:00:05]} e4 {[%emt 0:00:
03]} 30. c5 {[%emt 0:00:03]} a6 {[%emt 0:00:12]} 31. dxe4 {[%emt 0:00:02]} fxe4
{[%emt 0:00:05]} 32. Qxe4+ {[%emt 0:00:02]} Kg5 {[%emt 0:00:04]} 33. c6 {
[%emt 0:00:01]} Kh5 {[%emt 0:00:03]} 34. c7 {[%emt 0:00:01]} Kg5 {[%emt 0:00:
04]} 35. c8=Q {[%emt 0:00:02]} h5 {[%emt 0:00:04]} 36. Qcf5+ {[%emt 0:00:02]}
Kh6 {[%emt 0:00:03]} 37. Qee6+ {[%emt 0:00:02]} Kg7 {[%emt 0:00:03]} 38. Qff7+
{[%emt 0:00:02]} Kh8 {[%emt 0:00:03]} 39. Qh6# {[%emt 0:00:03] ThinOpalSneeze
won by checkmate} 1-0

[Event "Fast Chess"]
[Site "ChessKid.com"]
[Date "2020.04.16"]
[Round "4"]
[White "Li, Tobias"]
[Black "Georgiev, Maximilian"]
[Result "0-1"]
[ECO "B01"]
[WhiteElo "1244"]
[BlackElo "1395"]
[PlyCount "128"]
[EventDate "2020.??.??"]
[TimeControl "300"]
[WhiteClock "0:01:22"]
[BlackClock "0:00:03"]

1. e4 {[%emt 0:00:01]} d5 {[%emt 0:00:02]} 2. exd5 {[%emt 0:00:04]} Qxd5 {
[%emt 0:00:01]} 3. Nc3 {[%emt 0:00:01]} Qd8 {[%emt 0:00:01]} 4. Nf3 {[%emt 0:
00:02]} Nf6 {[%emt 0:00:02]} 5. d4 {[%emt 0:00:01]} Nc6 {[%emt 0:00:04]} 6. Bc4
{[%emt 0:00:06]} e6 {[%emt 0:00:03]} 7. O-O {[%emt 0:00:04]} Bb4 {[%emt 0:00:
02]} 8. Bd2 {[%emt 0:00:17]} O-O {[%emt 0:00:01]} 9. a3 {[%emt 0:00:02]} Ba5 {
[%emt 0:00:03]} 10. b4 {[%emt 0:00:02]} Bb6 {[%emt 0:00:01]} 11. Be3 {[%emt 0:
00:08]} a5 {[%emt 0:00:04]} 12. bxa5 {[%emt 0:00:05]} Bxa5 {[%emt 0:00:03]} 13.
Qd3 {[%emt 0:00:11]} Bxc3 {[%emt 0:00:04]} 14. Qxc3 {[%emt 0:00:02]} Ne4 {
[%emt 0:00:04]} 15. Qd3 {[%emt 0:00:06]} Nf6 {[%emt 0:00:06]} 16. Ne5 {[%emt 0:
00:16]} Nxe5 {[%emt 0:00:05]} 17. dxe5 {[%emt 0:00:02]} Qxd3 {[%emt 0:00:02]}
18. Bxd3 {[%emt 0:00:01]} Ng4 {[%emt 0:00:03]} 19. Bc5 {[%emt 0:00:07]} Re8 {
[%emt 0:00:07]} 20. h3 {[%emt 0:00:07]} Nxe5 {[%emt 0:00:02]} 21. Bb5 {[%emt 0:
00:12]} c6 {[%emt 0:00:03]} 22. Ba4 {[%emt 0:00:09]} Rxa4 {[%emt 0:00:03]} 23.
Rfe1 {[%emt 0:00:07]} Nc4 {[%emt 0:00:06]} 24. Re4 {[%emt 0:00:05]} e5 {
[%emt 0:00:06]} 25. Rb1 {[%emt 0:00:13]} Bf5 {[%emt 0:00:04]} 26. Rh4 {[%emt 0:
00:13]} Bxc2 {[%emt 0:00:04]} 27. Rc1 {[%emt 0:00:04]} Nxa3 {[%emt 0:00:04]}
28. Rxa4 {[%emt 0:00:05]} Bxa4 {[%emt 0:00:03]} 29. Ra1 {[%emt 0:00:08]} b6 {
[%emt 0:00:11]} 30. Bxb6 {[%emt 0:00:07]} Nc4 {[%emt 0:00:02]} 31. Rxa4 {
[%emt 0:00:14]} Nxb6 {[%emt 0:00:01]} 32. Ra6 {[%emt 0:00:01]} Rb8 {[%emt 0:00:
06]} 33. Kf1 {[%emt 0:00:07]} Kf8 {[%emt 0:00:03]} 34. Ke2 {[%emt 0:00:01]} Ke7
{[%emt 0:00:02]} 35. Kd3 {[%emt 0:00:00]} Kd6 {[%emt 0:00:01]} 36. Ke4 {
[%emt 0:00:01]} g6 {[%emt 0:00:03]} 37. f4 {[%emt 0:00:02]} exf4 {[%emt 0:00:
03]} 38. Kxf4 {[%emt 0:00:02]} Nd5+ {[%emt 0:00:03]} 39. Ke4 {[%emt 0:00:03]}
Nf6+ {[%emt 0:00:05]} 40. Kf4 {[%emt 0:00:01]} Nh5+ {[%emt 0:00:02]} 41. Kg5 {
[%emt 0:00:01]} Kd5 {[%emt 0:00:09]} 42. g4 {[%emt 0:00:03]} Ng3 {[%emt 0:00:
03]} 43. Kf4 {[%emt 0:00:03]} Ne2+ {[%emt 0:00:03]} 44. Ke3 {[%emt 0:00:01]}
Nc3 {[%emt 0:00:01]} 45. Kd3 {[%emt 0:00:02]} Nb5 {[%emt 0:00:04]} 46. Ra5 {
[%emt 0:00:09]} c5 {[%emt 0:00:06]} 47. h4 {[%emt 0:00:11]} Nd6 {[%emt 0:00:02]
} 48. h5 {[%emt 0:00:03]} gxh5 {[%emt 0:00:03]} 49. gxh5 {[%emt 0:00:03]} Kc6 {
[%emt 0:00:07]} 50. Kc3 {[%emt 0:00:08]} Nb7 {[%emt 0:00:05]} 51. Ra6+ {
[%emt 0:00:05]} Kb5 {[%emt 0:00:03]} 52. Ra7 {[%emt 0:00:01]} Nd6 {[%emt 0:00:
04]} 53. Rd7 {[%emt 0:00:10]} Ne4+ {[%emt 0:00:04]} 54. Kd3 {[%emt 0:00:04]}
Ng5 {[%emt 0:00:03]} 55. Ke3 {[%emt 0:00:04]} c4 {[%emt 0:00:04]} 56. Kf4 {
[%emt 0:00:00]} Ne6+ {[%emt 0:00:02]} 57. Ke5 {[%emt 0:00:02]} Nc5 {[%emt 0:00:
03]} 58. Rxf7 {[%emt 0:00:04]} c3 {[%emt 0:00:05]} 59. Rxh7 {[%emt 0:00:01]} c2
{[%emt 0:00:02]} 60. Rg7 {[%emt 0:00:00]} c1=Q {[%emt 0:00:02]} 61. Rc7 {
[%emt 0:00:01]} Qe3+ {[%emt 0:00:02]} 62. Kd5 {[%emt 0:00:02]} Qf3+ {[%emt 0:
00:06]} 63. Kd4 {[%emt 0:00:01]} Qf4+ {[%emt 0:00:03]} 64. Kd5 {[%emt 0:00:02]}
Qxc7 {[%emt 0:00:01] TallSnazzyBall won on time} 0-1

[Event "Fast Chess"]
[Site "ChessKid.com"]
[Date "2020.04.16"]
[Round "4"]
[White "Dai, Lana"]
[Black "Richter, Leon"]
[Result "0-1"]
[ECO "C40"]
[WhiteElo "1270"]
[BlackElo "1192"]
[PlyCount "54"]
[EventDate "2020.??.??"]
[TimeControl "300"]
[WhiteClock "0:03:02"]
[BlackClock "0:00:07"]

1. e4 {[%emt 0:00:11]} e5 {[%emt 0:00:02]} 2. Nf3 {[%emt 0:00:02]} Bd6 {
[%emt 0:00:03]} 3. Nc3 {[%emt 0:00:02]} Nf6 {[%emt 0:00:03]} 4. Bc4 {[%emt 0:
00:02]} O-O {[%emt 0:00:03]} 5. d3 {[%emt 0:00:03]} Nc6 {[%emt 0:00:08]} 6. Bg5
{[%emt 0:00:04]} Na5 {[%emt 0:00:03]} 7. Nd5 {[%emt 0:00:16]} Nxc4 {[%emt 0:00:
05]} 8. dxc4 {[%emt 0:00:07]} Be7 {[%emt 0:00:02]} 9. Nxf6+ {[%emt 0:00:13]}
Bxf6 {[%emt 0:00:07]} 10. Bxf6 {[%emt 0:00:09]} Qxf6 {[%emt 0:00:03]} 11. O-O {
[%emt 0:00:11]} Qf4 {[%emt 0:00:03]} 12. Qe2 {[%emt 0:00:15]} Qg5 {[%emt 0:00:
03]} 13. c5 {[%emt 0:00:07]} Qg6 {[%emt 0:00:03]} 14. Nxe5 {[%emt 0:00:05]} Qg5
{[%emt 0:00:06]} 15. Nf3 {[%emt 0:00:06]} Qg6 {[%emt 0:00:03]} 16. e5 {[%emt 0:
00:09]} d6 {[%emt 0:00:03]} 17. exd6 {[%emt 0:00:12]} Bh3 {[%emt 0:00:02]} 18.
Nh4 {[%emt 0:00:17]} Qg5 {[%emt 0:00:05]} 19. Qe4 {[%emt 0:00:34]} Rfe8 {
[%emt 0:00:06]} 20. Qd4 {[%emt 0:00:14]} Re6 {[%emt 0:00:07]} 21. dxc7 {
[%emt 0:00:09]} Rae8 {[%emt 0:00:03]} 22. c8=Q {[%emt 0:00:23]} Rxc8 {[%emt 0:
00:06]} 23. Qd7 {[%emt 0:00:11]} Rce8 {[%emt 0:00:04]} 24. c6 {[%emt 0:00:33]}
Re4 {[%emt 0:00:05]} 25. Rae1 {[%emt 0:00:06]} bxc6 {[%emt 0:00:09]} 26. Qxh3 {
[%emt 0:00:09]} Rxe1 {[%emt 0:00:05]} 27. f3 {[%emt 0:00:08]} Qc5+ {[%emt 0:00:
07] ThinOpalSneeze won on time} 0-1

[Event "Fast Chess"]
[Site "ChessKid.com"]
[Date "2020.04.16"]
[Round "4"]
[White "Fennesz, Moritz"]
[Black "Li, Patrick"]
[Result "0-1"]
[ECO "B02"]
[WhiteElo "920"]
[BlackElo "1014"]
[PlyCount "70"]
[EventDate "2020.??.??"]
[TimeControl "300"]
[WhiteClock "0:01:34"]
[BlackClock "0:01:50"]

1. e4 {[%emt 0:00:00]} e5 {[%emt 0:00:02]} 2. d3 {[%emt 0:00:02]} Nf6 {[%emt 0:
00:05]} 3. f3 {[%emt 0:00:02]} Nc6 {[%emt 0:00:06]} 4. Nc3 {[%emt 0:00:02]} d6
{[%emt 0:00:04]} 5. Nge2 {[%emt 0:00:02]} Be6 {[%emt 0:00:11]} 6. Be3 {[%emt 0:
00:03]} Nh5 {[%emt 0:00:11]} 7. Qd2 {[%emt 0:00:03]} Nf4 {[%emt 0:00:08]} 8.
Nxf4 {[%emt 0:00:29]} exf4 {[%emt 0:00:04]} 9. Bxf4 {[%emt 0:00:04]} Nd4 {
[%emt 0:00:14]} 10. Qe3 {[%emt 0:00:07]} Nxc2+ {[%emt 0:00:08]} 11. Kd1 {
[%emt 0:00:13]} Nxe3+ {[%emt 0:00:01]} 12. Bxe3 {[%emt 0:00:07]} Be7 {[%emt 0:
00:08]} 13. f4 {[%emt 0:00:07]} Bg4+ {[%emt 0:00:07]} 14. Be2 {[%emt 0:00:04]}
Bxe2+ {[%emt 0:00:04]} 15. Kxe2 {[%emt 0:00:02]} Bf6 {[%emt 0:00:04]} 16. e5 {
[%emt 0:00:05]} dxe5 {[%emt 0:00:01]} 17. fxe5 {[%emt 0:00:02]} Bxe5 {[%emt 0:
00:02]} 18. Rhf1 {[%emt 0:00:05]} O-O {[%emt 0:00:04]} 19. d4 {[%emt 0:00:05]}
Bxh2 {[%emt 0:00:07]} 20. Rh1 {[%emt 0:00:05]} Bd6 {[%emt 0:00:08]} 21. Raf1 {
[%emt 0:00:06]} Qe8 {[%emt 0:00:04]} 22. Rf5 {[%emt 0:00:05]} Qe6 {[%emt 0:00:
13]} 23. Rf4 {[%emt 0:00:06]} Bxf4 {[%emt 0:00:04]} 24. Rd1 {[%emt 0:00:15]}
Qxe3+ {[%emt 0:00:08]} 25. Kf1 {[%emt 0:00:05]} Rfe8 {[%emt 0:00:06]} 26. Re1 {
[%emt 0:00:04]} Qd3+ {[%emt 0:00:07]} 27. Kf2 {[%emt 0:00:05]} Rxe1 {[%emt 0:
00:05]} 28. Kxe1 {[%emt 0:00:06]} Qd2+ {[%emt 0:00:01]} 29. Kf1 {[%emt 0:00:03]
} Qxb2 {[%emt 0:00:04]} 30. Kg1 {[%emt 0:00:05]} Qxc3 {[%emt 0:00:07]} 31. g3 {
[%emt 0:00:04]} Qxg3+ {[%emt 0:00:16]} 32. Kf1 {[%emt 0:00:04]} Re8 {[%emt 0:
00:03]} 33. d5 {[%emt 0:00:06]} Qf3+ {[%emt 0:00:02]} 34. Kg1 {[%emt 0:00:03]}
Bd6 {[%emt 0:00:03]} 35. a4 {[%emt 0:00:07]} Re1# {[%emt 0:00:04]
WideClassyQuiz won by checkmate} 0-1

[Event "Fast Chess"]
[Site "ChessKid.com"]
[Date "2020.04.17"]
[Round "1"]
[White "Georgiev, Maximilian"]
[Black "Dai, Lana"]
[Result "1/2-1/2"]
[ECO "C55"]
[WhiteElo "1355"]
[BlackElo "1267"]
[PlyCount "91"]
[EventDate "2020.??.??"]
[TimeControl "300+50"]
[WhiteClock "0:02:45"]
[BlackClock "0:04:56"]

1. e4 {[%emt 0:00:45]} e5 {[%emt 0:00:50]} 2. Nf3 {[%emt 0:00:47]} Nc6 {
[%emt 0:00:48]} 3. Bc4 {[%emt 0:00:47]} h6 {[%emt 0:00:48]} 4. O-O {[%emt 0:00:
47]} Nf6 {[%emt 0:00:47]} 5. Nc3 {[%emt 0:00:47]} Bc5 {[%emt 0:00:52]} 6. h3 {
[%emt 0:00:49]} a6 {[%emt 0:00:47]} 7. a3 {[%emt 0:00:47]} d6 {[%emt 0:00:46]}
8. b4 {[%emt 0:00:48]} Bd4 {[%emt 0:00:53]} 9. Nxd4 {[%emt 0:00:51]} Nxd4 {
[%emt 0:00:46]} 10. d3 {[%emt 0:00:48]} O-O {[%emt 0:00:51]} 11. Bb2 {[%emt 0:
00:48]} b5 {[%emt 0:00:49]} 12. Bd5 {[%emt 0:00:48]} Nxd5 {[%emt 0:00:52]} 13.
Nxd5 {[%emt 0:00:48]} Be6 {[%emt 0:00:54]} 14. Bxd4 {[%emt 0:00:49]} Bxd5 {
[%emt 0:00:52]} 15. Be3 {[%emt 0:00:50]} Be6 {[%emt 0:00:52]} 16. d4 {[%emt 0:
00:49]} exd4 {[%emt 0:00:52]} 17. Qxd4 {[%emt 0:00:47]} Bc4 {[%emt 0:00:58]}
18. Rfe1 {[%emt 0:00:50]} c5 {[%emt 0:01:03]} 19. Qc3 {[%emt 0:00:50]} cxb4 {
[%emt 0:00:51]} 20. axb4 {[%emt 0:00:49]} d5 {[%emt 0:00:51]} 21. Rab1 {
[%emt 0:00:58]} dxe4 {[%emt 0:00:52]} 22. Bc1 {[%emt 0:00:51]} Re8 {[%emt 0:00:
55]} 23. Bb2 {[%emt 0:00:48]} f6 {[%emt 0:00:55]} 24. Rbd1 {[%emt 0:00:51]} Qc7
{[%emt 0:00:51]} 25. Qd4 {[%emt 0:00:55]} Qc6 {[%emt 0:01:01]} 26. Qe3 {
[%emt 0:00:53]} Re7 {[%emt 0:01:09]} 27. Bd4 {[%emt 0:00:57]} Re6 {[%emt 0:01:
01]} 28. Ba1 {[%emt 0:00:52]} Ba2 {[%emt 0:01:03]} 29. Rd2 {[%emt 0:00:56]} Bc4
{[%emt 0:01:15]} 30. Rd4 {[%emt 0:00:58]} Ba2 {[%emt 0:00:59]} 31. Rxe4 {
[%emt 0:00:51]} Qxe4 {[%emt 0:01:08]} 32. Qxe4 {[%emt 0:00:48]} Rxe4 {[%emt 0:
00:48]} 33. Rxe4 {[%emt 0:00:50]} Bb1 {[%emt 0:00:50]} 34. Re2 {[%emt 0:00:49]}
Rc8 {[%emt 0:00:53]} 35. c3 {[%emt 0:00:47]} Bd3 {[%emt 0:00:51]} 36. Rd2 {
[%emt 0:00:51]} Bb1 {[%emt 0:00:48]} 37. Rd6 {[%emt 0:00:57]} Ra8 {[%emt 0:00:
54]} 38. Rd4 {[%emt 0:00:52]} Re8 {[%emt 0:00:52]} 39. Kh2 {[%emt 0:00:54]} Re2
{[%emt 0:00:51]} 40. Rf4 {[%emt 0:00:51]} Ra2 {[%emt 0:00:55]} 41. Rd4 {
[%emt 0:00:58]} Rxa1 {[%emt 0:00:47]} 42. Rd8+ {[%emt 0:00:47]} Kf7 {[%emt 0:
00:47]} 43. Rd7+ {[%emt 0:00:48]} Kg8 {[%emt 0:00:50]} 44. Rd8+ {[%emt 0:00:46]
} Kf7 {[%emt 0:00:46]} 45. Rd7+ {[%emt 0:00:46]} Kg8 {[%emt 0:00:46]} 46. Rd8+
{[%emt 0:00:46] Game drawn by repetition} 1/2-1/2